[Event "Titled Tuesday Blitz November 22 Early 2022"]
[White "Garcia Ramos, Daniel"]
[Black "Reprintsev, Alexander"]
[WhiteFideId "32010311"]
[BlackFideId "14100541"]
[WhiteElo "2357"]
[BlackElo "2230"]
[Result "1-0"]
[Round "07"]
[TimeControl "180+1"]
[Date "2022.11.23"]
[WhiteClock "0:00:07"]
[BlackClock "0:00:08"]

1. e4 {[%clk 0:03:00]}  d5 {[%clk 0:02:52]} 2. exd5 {[%clk 0:03:00]}  Qxd5 {[%clk 0:02:51]} 3. Nc3 {[%clk 0:03:00]}  Qa5 {[%clk 0:02:50]} 4. d4 {[%clk 0:03:00]}  Nf6 {[%clk 0:02:51]} 5. Nf3 {[%clk 0:03:00]}  Nc6 {[%clk 0:02:50]} 6. Bb5 {[%clk 0:02:34]}  Ne4 {[%clk 0:02:46]} 7. Bd2 {[%clk 0:01:59]}  Nxc3 {[%clk 0:02:44]} 8. Bxc6+ {[%clk 0:01:59]}  bxc6 {[%clk 0:02:45]} 9. Bxc3 {[%clk 0:02:00]}  Qd5 {[%clk 0:02:45]} 10. O-O {[%clk 0:02:00]}  Bg4 {[%clk 0:02:44]} 11. Re1 {[%clk 0:02:00]}  Bxf3 {[%clk 0:02:44]} 12. Qxf3 {[%clk 0:01:51]}  Qxf3 {[%clk 0:02:43]} 13. gxf3 {[%clk 0:01:51]}  e6 {[%clk 0:02:43]} 14. Re4 {[%clk 0:01:45]}  Bd6 {[%clk 0:02:42]} 15. Rae1 {[%clk 0:01:46]}  Kd7 {[%clk 0:02:40]} 16. b3 {[%clk 0:01:40]}  Rhb8 {[%clk 0:02:37]} 17. R1e3 {[%clk 0:01:33]}  Ba3 {[%clk 0:02:31]} 18. Rh4 {[%clk 0:01:16]}  h6 {[%clk 0:02:26]} 19. Re5 {[%clk 0:01:11]}  Rb5 {[%clk 0:02:21]} 20. Rf4 {[%clk 0:01:03]}  f6 {[%clk 0:01:30]} 21. Re2 {[%clk 0:00:59]}  f5 {[%clk 0:01:26]} 22. Rh4 {[%clk 0:00:46]}  Be7 {[%clk 0:01:19]} 23. Rh3 {[%clk 0:00:43]}  f4 {[%clk 0:01:14]} 24. Re4 {[%clk 0:00:43]}  Rf8 {[%clk 0:01:12]} 25. Bd2 {[%clk 0:00:43]}  Rbf5 {[%clk 0:01:09]} 26. Kf1 {[%clk 0:00:41]}  h5 {[%clk 0:01:03]} 27. Ke2 {[%clk 0:00:40]}  g6 {[%clk 0:01:02]} 28. Kd3 {[%clk 0:00:39]}  c5 {[%clk 0:00:59]} 29. dxc5 {[%clk 0:00:22]}  Bxc5 {[%clk 0:00:57]} 30. Rh4 {[%clk 0:00:15]}  e5 {[%clk 0:00:53]} 31. Bc3 {[%clk 0:00:15]}  Be7 {[%clk 0:00:52]} 32. Rh3 {[%clk 0:00:14]}  Bf6 {[%clk 0:00:46]} 33. Re1 {[%clk 0:00:14]}  Rg5 {[%clk 0:00:45]} 34. Ke4 {[%clk 0:00:12]}  Ke6 {[%clk 0:00:45]} 35. Rd1 {[%clk 0:00:12]}  Rg2 {[%clk 0:00:39]} 36. Rd2 {[%clk 0:00:09]}  Rf7 {[%clk 0:00:19]} 37. Bb2 {[%clk 0:00:06]}  c6 {[%clk 0:00:18]} 38. c4 {[%clk 0:00:05]}  Rc7 {[%clk 0:00:13]} 39. c5 {[%clk 0:00:05]}  Kf7 {[%clk 0:00:09]} 40. Rd6 {[%clk 0:00:02]}  Rxf2 {[%clk 0:00:08]} 41. Rxf6+ {[%clk 0:00:02]}  Kxf6 {[%clk 0:00:05]} 42. Bxe5+ {[%clk 0:00:03]}  Ke6 {[%clk 0:00:04]} 43. Bxc7 {[%clk 0:00:03]}  Rxa2 {[%clk 0:00:04]} 44. Bxf4 {[%clk 0:00:03]}  Rb2 {[%clk 0:00:03]} 45. Rg3 {[%clk 0:00:03]}  Rxb3 {[%clk 0:00:04]} 46. Rxg6+ {[%clk 0:00:04]}  Kf7 {[%clk 0:00:04]} 47. Rxc6 {[%clk 0:00:04]}  Rb4+ {[%clk 0:00:05]} 48. Kf5 {[%clk 0:00:04]}  a5 {[%clk 0:00:06]} 49. Rc7+ {[%clk 0:00:05]}  Ke8 {[%clk 0:00:07]} 50. Ra7 {[%clk 0:00:05]}  Kd8 {[%clk 0:00:07]} 51. Bd6 {[%clk 0:00:06]}  Rb3 {[%clk 0:00:07]} 52. f4 {[%clk 0:00:05]}  Rb5 {[%clk 0:00:06]} 53. Ke6 {[%clk 0:00:05]}  Kc8 {[%clk 0:00:07]} 54. Rc7+ {[%clk 0:00:04]}  Kb8 {[%clk 0:00:07]} 55. Rc6+ {[%clk 0:00:04]}  Kb7 {[%clk 0:00:07]} 56. Rb6+ {[%clk 0:00:05]}  Rxb6 {[%clk 0:00:07]} 57. cxb6 {[%clk 0:00:06]}  Kxb6 {[%clk 0:00:08]} 58. f5 {[%clk 0:00:07]} 1-0


[Site "https://www.chess.com"]

[Event "Titled Tuesday Blitz November 22 Early 2022"]
[White "Gardezi, Arsal"]
[Black "Valle Maytin, Luis Enrique"]
[WhiteFideId "30949521"]
[BlackFideId "3503666"]
[WhiteElo "1906"]
[BlackElo "2225"]
[Result "0-1"]
[Round "07"]
[TimeControl "180+1"]
[Date "2022.11.23"]
[WhiteClock "0:02:03"]
[BlackClock "0:01:03"]

1. b3 {[%clk 0:03:00]}  d5 {[%clk 0:02:59]} 2. Bb2 {[%clk 0:02:58]}  Nf6 {[%clk 0:02:58]} 3. Nf3 {[%clk 0:02:58]}  g6 {[%clk 0:02:58]} 4. d3 {[%clk 0:02:58]}  Bg7 {[%clk 0:02:58]} 5. Nbd2 {[%clk 0:02:59]}  O-O {[%clk 0:02:58]} 6. e4 {[%clk 0:02:59]}  c5 {[%clk 0:02:52]} 7. Be2 {[%clk 0:02:59]}  Nc6 {[%clk 0:02:51]} 8. O-O {[%clk 0:02:59]}  Re8 {[%clk 0:02:39]} 9. exd5 {[%clk 0:02:56]}  Nxd5 {[%clk 0:02:39]} 10. Bxg7 {[%clk 0:02:56]}  Kxg7 {[%clk 0:02:39]} 11. Ne4 {[%clk 0:02:56]}  b6 {[%clk 0:02:30]} 12. d4 {[%clk 0:02:50]}  Bf5 {[%clk 0:02:20]} 13. Ng3 {[%clk 0:02:43]}  Nc3 {[%clk 0:02:04]} 14. Nxf5+ {[%clk 0:02:37]}  gxf5 {[%clk 0:02:05]} 15. Qd2 {[%clk 0:02:36]}  Nxe2+ {[%clk 0:02:04]} 16. Qxe2 {[%clk 0:02:35]}  Nxd4 {[%clk 0:02:04]} 17. Qe5+ {[%clk 0:02:23]}  f6 {[%clk 0:02:03]} 18. Qg3+ {[%clk 0:02:23]}  Kh8 {[%clk 0:01:59]} 19. Nxd4 {[%clk 0:02:23]}  Qxd4 {[%clk 0:01:59]} 20. Rad1 {[%clk 0:02:23]}  Qe4 {[%clk 0:01:53]} 21. Rfe1 {[%clk 0:02:20]}  Qxc2 {[%clk 0:01:45]} 22. Rd7 {[%clk 0:02:20]}  Rad8 {[%clk 0:01:33]} 23. Qc7 {[%clk 0:02:18]}  Rxd7 {[%clk 0:01:22]} 24. Qxd7 {[%clk 0:02:17]}  Rg8 {[%clk 0:01:23]} 25. Qxe7 {[%clk 0:02:16]}  Qc3 {[%clk 0:01:23]} 26. g3 {[%clk 0:02:14]}  f4 {[%clk 0:01:17]} 27. Qf7 {[%clk 0:02:04]}  fxg3 {[%clk 0:01:08]} 28. hxg3 {[%clk 0:02:03]}  Qxe1+ {[%clk 0:01:07]} 29. Kg2 {[%clk 0:02:03]}  Qe4+ {[%clk 0:01:07]} 30. Kg1 {[%clk 0:02:03]}  Qe5 {[%clk 0:01:03]} 0-1


[Site "https://www.chess.com"]

[Event "Titled Tuesday Blitz November 22 Early 2022"]
[White "Gjestemoen-VonHirsch, Andre"]
[Black "Aradhya, Garg"]
[WhiteFideId "1539531"]
[BlackFideId "25006746"]
[WhiteElo "2198"]
[BlackElo "2223"]
[Result "0-1"]
[Round "07"]
[TimeControl "180+1"]
[Date "2022.11.23"]
[WhiteClock "0:00:01"]
[BlackClock "0:00:27"]

1. b3 {[%clk 0:03:00]}  e5 {[%clk 0:02:59]} 2. Bb2 {[%clk 0:03:00]}  Nc6 {[%clk 0:03:00]} 3. e3 {[%clk 0:03:00]}  d5 {[%clk 0:03:00]} 4. Bb5 {[%clk 0:02:57]}  Ne7 {[%clk 0:03:00]} 5. Nf3 {[%clk 0:02:56]}  a6 {[%clk 0:02:56]} 6. Bxc6+ {[%clk 0:02:52]}  Nxc6 {[%clk 0:02:57]} 7. Nxe5 {[%clk 0:02:52]}  Nxe5 {[%clk 0:02:58]} 8. Bxe5 {[%clk 0:02:53]}  Qg5 {[%clk 0:02:57]} 9. Bg3 {[%clk 0:02:49]}  h5 {[%clk 0:02:56]} 10. h4 {[%clk 0:02:48]}  Qf6 {[%clk 0:02:56]} 11. Nc3 {[%clk 0:02:45]}  Be6 {[%clk 0:02:56]} 12. Qf3 {[%clk 0:02:42]}  Qd8 {[%clk 0:02:40]} 13. O-O {[%clk 0:02:08]}  Be7 {[%clk 0:02:39]} 14. Qf4 {[%clk 0:01:56]}  Bd6 {[%clk 0:02:36]} 15. Qf3 {[%clk 0:01:47]}  Be7 {[%clk 0:02:36]} 16. Qf4 {[%clk 0:01:46]}  Rc8 {[%clk 0:02:30]} 17. Rae1 {[%clk 0:01:19]}  g5 {[%clk 0:02:23]} 18. hxg5 {[%clk 0:01:07]}  Bxg5 {[%clk 0:02:24]} 19. Qa4+ {[%clk 0:01:02]}  c6 {[%clk 0:02:23]} 20. e4 {[%clk 0:00:45]}  d4 {[%clk 0:02:19]} 21. Nd5 {[%clk 0:00:20]}  O-O {[%clk 0:02:19]} 22. f4 {[%clk 0:00:19]}  Bh4 {[%clk 0:01:10]} 23. Bxh4 {[%clk 0:00:12]}  Qxh4 {[%clk 0:01:11]} 24. Qxd4 {[%clk 0:00:06]}  cxd5 {[%clk 0:01:09]} 25. exd5 {[%clk 0:00:07]}  Bf5 {[%clk 0:01:08]} 26. Re5 {[%clk 0:00:07]}  Qg4 {[%clk 0:01:05]} 27. c4 {[%clk 0:00:05]}  Kh7 {[%clk 0:00:59]} 28. Rf2 {[%clk 0:00:02]}  h4 {[%clk 0:00:54]} 29. Qe3 {[%clk 0:00:02]}  Rg8 {[%clk 0:00:54]} 30. d4 {[%clk 0:00:02]}  Rg7 {[%clk 0:00:52]} 31. Kf1 {[%clk 0:00:02]}  Rcg8 {[%clk 0:00:47]} 32. Qf3 {[%clk 0:00:02]}  Qxf3 {[%clk 0:00:47]} 33. gxf3 {[%clk 0:00:02]}  Kg6 {[%clk 0:00:30]} 34. Rg2+ {[%clk 0:00:02]}  Kf6 {[%clk 0:00:30]} 35. Rg5 {[%clk 0:00:01]}  Rxg5 {[%clk 0:00:29]} 36. fxg5+ {[%clk 0:00:01]}  Rxg5 {[%clk 0:00:30]} 37. f4 {[%clk 0:00:02]}  Rg4 {[%clk 0:00:29]} 38. Ke2 {[%clk 0:00:03]}  Rxf4 {[%clk 0:00:30]} 39. Ke3 {[%clk 0:00:03]}  Rg4 {[%clk 0:00:29]} 40. d6 {[%clk 0:00:04]}  h3 {[%clk 0:00:27]} 41. d5 {[%clk 0:00:01]}  h2 {[%clk 0:00:27]} 0-1


[Site "https://www.chess.com"]

[Event "Titled Tuesday Blitz November 22 Early 2022"]
[White "Gonzalez Vega, Alejandro"]
[Black "Sadubayev, Airat"]
[WhiteFideId "3510042"]
[BlackFideId "13713264"]
[WhiteElo "2275"]
[BlackElo "2160"]
[Result "1/2-1/2"]
[Round "07"]
[TimeControl "180+1"]
[Date "2022.11.23"]
[WhiteClock "0:00:56"]
[BlackClock "0:00:51"]

1. e4 {[%clk 0:03:00]}  c6 {[%clk 0:02:59]} 2. d4 {[%clk 0:02:59]}  d5 {[%clk 0:02:59]} 3. exd5 {[%clk 0:03:00]}  cxd5 {[%clk 0:02:59]} 4. Bd3 {[%clk 0:03:00]}  Nc6 {[%clk 0:02:59]} 5. c3 {[%clk 0:03:00]}  Nf6 {[%clk 0:02:59]} 6. Bf4 {[%clk 0:02:59]}  g6 {[%clk 0:02:44]} 7. h3 {[%clk 0:02:58]}  Bg7 {[%clk 0:02:43]} 8. Nf3 {[%clk 0:02:59]}  O-O {[%clk 0:02:41]} 9. O-O {[%clk 0:02:58]}  Bf5 {[%clk 0:02:34]} 10. Re1 {[%clk 0:02:58]}  Bxd3 {[%clk 0:02:21]} 11. Qxd3 {[%clk 0:02:57]}  Ne4 {[%clk 0:02:21]} 12. Nbd2 {[%clk 0:02:56]}  f5 {[%clk 0:02:13]} 13. Rad1 {[%clk 0:02:30]}  Bf6 {[%clk 0:01:59]} 14. Ne5 {[%clk 0:02:23]}  e6 {[%clk 0:01:48]} 15. f3 {[%clk 0:02:08]}  Nxd2 {[%clk 0:01:40]} 16. Rxd2 {[%clk 0:02:02]}  Re8 {[%clk 0:01:30]} 17. Nxc6 {[%clk 0:01:59]}  bxc6 {[%clk 0:01:30]} 18. Rde2 {[%clk 0:01:58]}  Qd7 {[%clk 0:01:28]} 19. Qa6 {[%clk 0:01:49]}  Bh4 {[%clk 0:01:21]} 20. Rd1 {[%clk 0:01:46]}  Bf6 {[%clk 0:01:19]} 21. b4 {[%clk 0:01:41]}  Bg7 {[%clk 0:01:06]} 22. Rde1 {[%clk 0:01:39]}  Bf6 {[%clk 0:01:05]} 23. a4 {[%clk 0:01:38]}  Bh4 {[%clk 0:01:02]} 24. Rd1 {[%clk 0:01:31]}  Bf6 {[%clk 0:01:01]} 25. a5 {[%clk 0:01:19]}  Bg7 {[%clk 0:00:55]} 26. Qd3 {[%clk 0:00:58]}  Bf6 {[%clk 0:00:55]} 27. Rde1 {[%clk 0:00:57]}  Bh4 {[%clk 0:00:55]} 28. Rd1 {[%clk 0:00:57]}  Bf6 {[%clk 0:00:54]} 29. Rde1 {[%clk 0:00:56]}  Bh4 {[%clk 0:00:51]} 30. Rd1 {[%clk 0:00:56]}  Bf6 {[%clk 0:00:51]} 1/2-1/2


[Site "https://www.chess.com"]

[Event "Titled Tuesday Blitz November 22 Early 2022"]
[White "Goryachkina, Aleksandra"]
[Black "Indjic, Aleksandar"]
[WhiteFideId "4147103"]
[BlackFideId "911925"]
[WhiteElo "2484"]
[BlackElo "2592"]
[Result "0-1"]
[Round "07"]
[TimeControl "180+1"]
[Date "2022.11.22"]
[WhiteClock "0:00:02"]
[BlackClock "0:01:15"]

1. e4 {[%clk 0:02:59]}  e5 {[%clk 0:02:58]} 2. Nc3 {[%clk 0:02:58]}  Nf6 {[%clk 0:02:56]} 3. d4 {[%clk 0:02:58]}  exd4 {[%clk 0:02:52]} 4. Qxd4 {[%clk 0:02:58]}  Nc6 {[%clk 0:02:51]} 5. Qd3 {[%clk 0:02:57]}  d5 {[%clk 0:02:44]} 6. Bg5 {[%clk 0:01:52]}  d4 {[%clk 0:02:07]} 7. Bxf6 {[%clk 0:01:32]}  gxf6 {[%clk 0:01:54]} 8. Nd5 {[%clk 0:01:20]}  Be6 {[%clk 0:01:51]} 9. Qb5 {[%clk 0:00:45]}  a6 {[%clk 0:01:39]} 10. Nxf6+ {[%clk 0:00:10]}  Qxf6 {[%clk 0:01:31]} 11. Qxb7 {[%clk 0:00:11]}  Bb4+ {[%clk 0:01:31]} 12. c3 {[%clk 0:00:10]}  dxc3 {[%clk 0:01:16]} 13. Qxc6+ {[%clk 0:00:07]}  Kf8 {[%clk 0:01:16]} 14. bxc3 {[%clk 0:00:02]}  Qxc3+ {[%clk 0:01:15]} 0-1


[Site "https://www.chess.com"]

[Event "Titled Tuesday Blitz November 22 Early 2022"]
[White "Hambleton, Aman"]
[Black "Kouskoutis, Georgios-Alexandros"]
[WhiteFideId "2606577"]
[BlackFideId "4234049"]
[WhiteElo "2538"]
[BlackElo "2187"]
[Result "1-0"]
[Round "07"]
[TimeControl "180+1"]
[Date "2022.11.23"]
[WhiteClock "0:00:06"]
[BlackClock "0:00:02"]

1. d4 {[%clk 0:03:00]}  Nf6 {[%clk 0:02:56]} 2. c4 {[%clk 0:02:57]}  e6 {[%clk 0:02:54]} 3. Nc3 {[%clk 0:02:57]}  Bb4 {[%clk 0:02:50]} 4. e3 {[%clk 0:02:57]}  O-O {[%clk 0:02:50]} 5. Ne2 {[%clk 0:02:58]}  d5 {[%clk 0:02:46]} 6. a3 {[%clk 0:02:59]}  Be7 {[%clk 0:02:42]} 7. cxd5 {[%clk 0:02:59]}  exd5 {[%clk 0:02:41]} 8. Nf4 {[%clk 0:02:59]}  c6 {[%clk 0:02:37]} 9. Bd3 {[%clk 0:02:51]}  Bd6 {[%clk 0:02:30]} 10. O-O {[%clk 0:02:50]}  Bxf4 {[%clk 0:02:13]} 11. exf4 {[%clk 0:02:51]}  b6 {[%clk 0:01:59]} 12. Re1 {[%clk 0:02:45]}  Ba6 {[%clk 0:01:56]} 13. Bc2 {[%clk 0:02:46]}  Nbd7 {[%clk 0:01:49]} 14. f5 {[%clk 0:02:45]}  Re8 {[%clk 0:01:44]} 15. Bf4 {[%clk 0:02:40]}  Rxe1+ {[%clk 0:01:34]} 16. Qxe1 {[%clk 0:02:41]}  Qf8 {[%clk 0:01:34]} 17. f3 {[%clk 0:02:41]}  c5 {[%clk 0:01:28]} 18. Qd2 {[%clk 0:02:26]}  cxd4 {[%clk 0:01:06]} 19. Qxd4 {[%clk 0:02:27]}  Qc5 {[%clk 0:01:05]} 20. Rd1 {[%clk 0:02:25]}  Bb7 {[%clk 0:01:00]} 21. g4 {[%clk 0:02:18]}  h6 {[%clk 0:00:59]} 22. Bb3 {[%clk 0:02:10]}  Rc8 {[%clk 0:00:55]} 23. Qxc5 {[%clk 0:01:36]}  Nxc5 {[%clk 0:00:37]} 24. Bxd5 {[%clk 0:01:33]}  Nxd5 {[%clk 0:00:35]} 25. Nxd5 {[%clk 0:01:34]}  Re8 {[%clk 0:00:27]} 26. Kf2 {[%clk 0:01:25]}  Na4 {[%clk 0:00:25]} 27. Nc7 {[%clk 0:00:57]}  Re7 {[%clk 0:00:22]} 28. f6 {[%clk 0:00:21]}  gxf6 {[%clk 0:00:22]} 29. Rd8+ {[%clk 0:00:21]}  Kh7 {[%clk 0:00:19]} 30. Ne8 {[%clk 0:00:21]}  Re6 {[%clk 0:00:14]} 31. Nd6 {[%clk 0:00:22]}  Ba6 {[%clk 0:00:11]} 32. Rd7 {[%clk 0:00:15]}  Nxb2 {[%clk 0:00:10]} 33. Rxf7+ {[%clk 0:00:13]}  Kg8 {[%clk 0:00:08]} 34. Rd7 {[%clk 0:00:04]}  Nd3+ {[%clk 0:00:05]} 35. Kg3 {[%clk 0:00:05]}  Nxf4 {[%clk 0:00:04]} 36. Kxf4 {[%clk 0:00:06]}  Bf1 {[%clk 0:00:02]} 37. Nf5 {[%clk 0:00:06]} 1-0


[Site "https://www.chess.com"]

[Event "Titled Tuesday Blitz November 22 Early 2022"]
[White "Harsha Bharathakoti"]
[Black "Hristodoulou, Panagiotis"]
[WhiteFideId "5078776"]
[BlackFideId "4214340"]
[WhiteElo "2523"]
[BlackElo "2272"]
[Result "0-1"]
[Round "07"]
[TimeControl "180+1"]
[Date "2022.11.22"]
[WhiteClock "0:00:02"]
[BlackClock "0:00:18"]

1. e4 {[%clk 0:03:00]}  e5 {[%clk 0:02:45]} 2. Nf3 {[%clk 0:03:00]}  Nc6 {[%clk 0:02:44]} 3. Bc4 {[%clk 0:02:59]}  Nf6 {[%clk 0:02:43]} 4. d3 {[%clk 0:02:59]}  h6 {[%clk 0:02:41]} 5. a4 {[%clk 0:02:58]}  d6 {[%clk 0:02:40]} 6. a5 {[%clk 0:02:56]}  a6 {[%clk 0:02:39]} 7. Nc3 {[%clk 0:02:51]}  g6 {[%clk 0:02:34]} 8. O-O {[%clk 0:02:50]}  Bg7 {[%clk 0:02:34]} 9. Re1 {[%clk 0:02:36]}  O-O {[%clk 0:02:33]} 10. h3 {[%clk 0:02:28]}  Re8 {[%clk 0:02:22]} 11. Bd2 {[%clk 0:02:03]}  Be6 {[%clk 0:02:21]} 12. Bxe6 {[%clk 0:02:00]}  Rxe6 {[%clk 0:02:22]} 13. Nd5 {[%clk 0:02:01]}  Re8 {[%clk 0:02:20]} 14. c4 {[%clk 0:02:01]}  Nb8 {[%clk 0:02:09]} 15. b4 {[%clk 0:01:53]}  Nbd7 {[%clk 0:01:59]} 16. Bc3 {[%clk 0:01:37]}  c6 {[%clk 0:01:54]} 17. Ne3 {[%clk 0:01:38]}  Nf8 {[%clk 0:01:53]} 18. Qb3 {[%clk 0:01:38]}  Ne6 {[%clk 0:01:52]} 19. Rad1 {[%clk 0:01:38]}  Nh5 {[%clk 0:01:52]} 20. g3 {[%clk 0:01:30]}  Nd4 {[%clk 0:01:47]} 21. Bxd4 {[%clk 0:01:29]}  exd4 {[%clk 0:01:48]} 22. Nf1 {[%clk 0:01:03]}  Qd7 {[%clk 0:01:45]} 23. Kg2 {[%clk 0:01:01]}  Re7 {[%clk 0:01:45]} 24. Rb1 {[%clk 0:00:48]}  Rae8 {[%clk 0:01:30]} 25. b5 {[%clk 0:00:48]}  f5 {[%clk 0:01:21]} 26. exf5 {[%clk 0:00:36]}  Qxf5 {[%clk 0:01:19]} 27. Rxe7 {[%clk 0:00:30]}  Rxe7 {[%clk 0:01:19]} 28. bxc6 {[%clk 0:00:30]}  bxc6 {[%clk 0:01:19]} 29. Qb8+ {[%clk 0:00:10]}  Kh7 {[%clk 0:01:18]} 30. Qxd6 {[%clk 0:00:11]}  Rf7 {[%clk 0:01:10]} 31. N1d2 {[%clk 0:00:11]}  Qxd3 {[%clk 0:01:09]} 32. Rb3 {[%clk 0:00:11]}  Qe2 {[%clk 0:01:05]} 33. Qxc6 {[%clk 0:00:10]}  Nf6 {[%clk 0:00:21]} 34. Rb7 {[%clk 0:00:07]}  Rxb7 {[%clk 0:00:19]} 35. Qxb7 {[%clk 0:00:08]}  g5 {[%clk 0:00:16]} 36. Qxa6 {[%clk 0:00:06]}  g4 {[%clk 0:00:16]} 37. hxg4 {[%clk 0:00:03]}  Nxg4 {[%clk 0:00:17]} 38. Qc8 {[%clk 0:00:02]}  Qxf2+ {[%clk 0:00:17]} 39. Kh3 {[%clk 0:00:03]}  Ne3 {[%clk 0:00:18]} 40. Qc6 {[%clk 0:00:01]}  Qg2+ {[%clk 0:00:18]} 41. Kh4 {[%clk 0:00:02]}  Qh1+ {[%clk 0:00:18]} 42. Nh2 {[%clk 0:00:02]}  Qxc6 {[%clk 0:00:18]} 0-1


[Site "https://www.chess.com"]

[Event "Titled Tuesday Blitz November 22 Early 2022"]
[White "Horak, Martin"]
[Black "Samunenkov, Ihor"]
[WhiteFideId "367095"]
[BlackFideId "14187086"]
[WhiteElo "2091"]
[BlackElo "2441"]
[Result "1-0"]
[Round "07"]
[TimeControl "180+1"]
[Date "2022.11.23"]
[WhiteClock "0:00:52"]
[BlackClock "0:00:30"]

1. e4 {[%clk 0:03:00]}  c5 {[%clk 0:02:57]} 2. Nf3 {[%clk 0:03:00]}  Nc6 {[%clk 0:02:56]} 3. Bb5 {[%clk 0:03:00]}  g6 {[%clk 0:02:56]} 4. Bxc6 {[%clk 0:02:59]}  dxc6 {[%clk 0:02:57]} 5. d3 {[%clk 0:02:59]}  Bg7 {[%clk 0:02:57]} 6. h3 {[%clk 0:02:59]}  Nf6 {[%clk 0:02:57]} 7. Nc3 {[%clk 0:02:52]}  Nd7 {[%clk 0:02:56]} 8. Be3 {[%clk 0:02:49]}  e5 {[%clk 0:02:56]} 9. Qd2 {[%clk 0:02:46]}  h6 {[%clk 0:02:56]} 10. O-O {[%clk 0:02:44]}  b6 {[%clk 0:02:56]} 11. Nh2 {[%clk 0:02:43]}  Nf8 {[%clk 0:02:57]} 12. f4 {[%clk 0:02:44]}  exf4 {[%clk 0:02:57]} 13. Bxf4 {[%clk 0:02:44]}  Ne6 {[%clk 0:02:57]} 14. Be3 {[%clk 0:02:41]}  c4 {[%clk 0:02:47]} 15. dxc4 {[%clk 0:02:31]}  Qxd2 {[%clk 0:02:43]} 16. Bxd2 {[%clk 0:02:31]}  Ba6 {[%clk 0:02:42]} 17. b3 {[%clk 0:02:18]}  O-O-O {[%clk 0:02:27]} 18. Be1 {[%clk 0:02:17]}  Rd7 {[%clk 0:02:27]} 19. Rd1 {[%clk 0:02:13]}  Rhd8 {[%clk 0:01:48]} 20. Rxd7 {[%clk 0:02:11]}  Rxd7 {[%clk 0:01:49]} 21. Nf3 {[%clk 0:01:53]}  Nc5 {[%clk 0:01:32]} 22. e5 {[%clk 0:01:31]}  Ne6 {[%clk 0:00:53]} 23. Ne4 {[%clk 0:01:23]}  Kc7 {[%clk 0:00:51]} 24. Nd6 {[%clk 0:01:17]}  Bf8 {[%clk 0:00:42]} 25. Bg3 {[%clk 0:01:12]}  f5 {[%clk 0:00:30]} 26. Nh4 {[%clk 0:00:52]} 1-0


[Site "https://www.chess.com"]

[Event "Titled Tuesday Blitz November 22 Early 2022"]
[White "Ibarra Jerez, Jose Carlos"]
[Black "Svane, Rasmus"]
[WhiteFideId "2226332"]
[BlackFideId "4657101"]
[WhiteElo "2638"]
[BlackElo "2674"]
[Result "0-1"]
[Round "07"]
[TimeControl "180+1"]
[Date "2022.11.22"]
[WhiteClock "0:00:01"]
[BlackClock "0:00:19"]

1. e4 {[%clk 0:03:00]}  c6 {[%clk 0:02:59]} 2. f3 {[%clk 0:03:00]}  d5 {[%clk 0:03:00]} 3. d4 {[%clk 0:02:59]}  e6 {[%clk 0:03:00]} 4. Nc3 {[%clk 0:02:55]}  Nd7 {[%clk 0:03:01]} 5. Bd3 {[%clk 0:02:46]}  Bb4 {[%clk 0:02:41]} 6. Ne2 {[%clk 0:02:44]}  dxe4 {[%clk 0:02:37]} 7. fxe4 {[%clk 0:02:43]}  e5 {[%clk 0:02:38]} 8. a3 {[%clk 0:02:30]}  Bd6 {[%clk 0:02:37]} 9. d5 {[%clk 0:02:27]}  Ngf6 {[%clk 0:02:32]} 10. Ng3 {[%clk 0:02:19]}  cxd5 {[%clk 0:02:24]} 11. exd5 {[%clk 0:02:13]}  Nc5 {[%clk 0:02:24]} 12. Bb5+ {[%clk 0:02:10]}  Kf8 {[%clk 0:01:50]} 13. O-O {[%clk 0:02:07]}  h5 {[%clk 0:01:41]} 14. Bg5 {[%clk 0:02:05]}  h4 {[%clk 0:01:41]} 15. Nf5 {[%clk 0:02:00]}  Qb6 {[%clk 0:01:31]} 16. Be3 {[%clk 0:01:50]}  Bxf5 {[%clk 0:01:31]} 17. Rxf5 {[%clk 0:01:50]}  a6 {[%clk 0:01:32]} 18. Be2 {[%clk 0:01:24]}  Qxb2 {[%clk 0:01:31]} 19. Qe1 {[%clk 0:01:21]}  Qxc2 {[%clk 0:01:25]} 20. Rf1 {[%clk 0:01:04]}  h3 {[%clk 0:01:07]} 21. Rc1 {[%clk 0:00:59]}  Qg6 {[%clk 0:01:03]} 22. g3 {[%clk 0:00:59]}  Nd3 {[%clk 0:00:55]} 23. Bxd3 {[%clk 0:00:54]}  Qxd3 {[%clk 0:00:56]} 24. Qf2 {[%clk 0:00:54]}  Rc8 {[%clk 0:00:40]} 25. Rcd1 {[%clk 0:00:22]}  Qg6 {[%clk 0:00:36]} 26. Na4 {[%clk 0:00:20]}  b5 {[%clk 0:00:33]} 27. Nb6 {[%clk 0:00:19]}  Rc3 {[%clk 0:00:32]} 28. Rc1 {[%clk 0:00:11]}  Rxc1 {[%clk 0:00:30]} 29. Rxc1 {[%clk 0:00:08]}  Kg8 {[%clk 0:00:30]} 30. Rc6 {[%clk 0:00:07]}  Bxa3 {[%clk 0:00:27]} 31. d6 {[%clk 0:00:07]}  Qb1+ {[%clk 0:00:27]} 32. Qf1 {[%clk 0:00:06]}  Qe4 {[%clk 0:00:27]} 33. Rc8+ {[%clk 0:00:06]}  Kh7 {[%clk 0:00:27]} 34. Qxh3+ {[%clk 0:00:04]}  Kg6 {[%clk 0:00:28]} 35. Rxh8 {[%clk 0:00:04]}  Qxe3+ {[%clk 0:00:28]} 36. Kg2 {[%clk 0:00:04]}  Qe2+ {[%clk 0:00:28]} 37. Kh1 {[%clk 0:00:03]}  Bc5 {[%clk 0:00:19]} 38. Qf1 {[%clk 0:00:01]}  Qxf1# {[%clk 0:00:19]} 0-1


[Site "https://www.chess.com"]